Cogmind - Beta 17 @@@ ROGUE MODE // 2026.08.06 @ 11:56:16 Player: Floof Enjoyer Result: Self-destructed Performance ------------- Evolutions (2) 1000 Regions Visited (3) 600 Robots Destroyed (30) 150 Value Destroyed (1061) 1061 Prototype IDs (0) 0 Alien Tech Used (0) 0 Bonus (0) 0 TOTAL SCORE: 2811 Bonus ------- None Cogmind --------- Core Integrity 171/550 Matter 152/300 Energy 160/160 System Corruption 0% Temperature Warm (122) Movement Core (400) Ox7 Location -8/Materials Parts ------- > --- POWER (1) -------- Light Nuclear Core > --- PROPULSION (4) --- (None) > --- UTILITY (4) ------ Medium Storage Unit Makeshift Targeting Computer ECM Suite > --- WEAPON (2) ------- Ion Cannon > --- INVENTORY (10) --- Light Ion Engine Light Nuclear Core Cryofiber Web Improved Heat Sink Improved Heat Sink ECM Suite ECM Suite Peak State ------------ > --- POWER ------------ Light Nuclear Core > --- PROPULSION ------- Wheel Compact Wheel Compact Wheel Compact Wheel > --- UTILITY ---------- Improved Heat Sink Medium Storage Unit Makeshift Targeting Computer Improved Light Armor Plating > --- WEAPON ----------- Battle Cannon Battle Cannon > --- INVENTORY -------- Light Ion Engine Light Ion Engine Improved Heat Sink Improved Heat Sink ECM Suite ECM Suite ECM Suite Gauss Rifle [Rating: 21] Favorites ----------- Power Light Ion Engine Engine Light Ion Engine Power Core Light Nuclear Core Propulsion Compact Wheel Treads Light Treads Leg Aluminum Leg Wheel Compact Wheel Utility Medium Storage Unit Device Improved Heat Sink Storage Medium Storage Unit Processor Makeshift Targeting Computer Protection Weapon Shielding Weapon Heavy Assault Rifle Energy Gun Salvaging Laser Energy Cannon Ion Cannon Ballistic Gun Heavy Assault Rifle Ballistic Cannon Battle Cannon Build | -11 -10 -10 -8 ------- Run | Yrd Mat Sub Mat Slots Evolved 4 | . . . 4 Power . | . . . . Propulsion 2 | . . . 2 Utility 2 | . . . 2 Weapon . | . . . . Parts Attached 39 | 6 5 9 19 Power 5 | 1 1 . 3 Engine 3 | 1 1 . 1 Core 2 | . . . 2 Reactor . | . . . . Propulsion 10 | 2 . 3 5 Treads 1 | . . . 1 Leg 1 | . . 1 . Wheel 8 | 2 . 2 4 Hover . | . . . . Flight . | . . . . Utility 11 | 1 2 1 7 Device 2 | . . . 2 Storage 2 | 1 1 . . Processor 2 | . . . 2 Hackware . | . . . . Protection 5 | . 1 1 3 Artifact . | . . . . Weapon 13 | 2 2 5 4 Energy Gun 3 | . . 1 2 Energy Cannon 1 | . . . 1 Ballistic Gun 7 | 2 2 2 1 Ballistic Cannon 2 | . . 2 . Launcher . | . . . . Special Weapon . | . . . . Impact Weapon . | . . . . Slashing Weapon . | . . . . Piercing Weapon . | . . . . Special Melee Weapon . | . . . . Unidentified Prototypes . | . . . . Parts Lost 18 | . . 5 13 Power 3 | . . 1 2 Propulsion 7 | . . 2 5 Utility 4 | . . 1 3 Weapon 4 | . . 1 3 Highest Loss Streak 4 | . . 1 4 To Critical Strikes . | . . . . Average Backups 5 | 1 3 5 5 Power . | . 1 . . Propulsion . | . . . . Utility 2 | . . 2 3 Weapon 1 | . 2 2 1 Tool/Special . | . . . . Unused Backups 12 | . 1 1 10 Power 3 | . 1 . 2 Propulsion 1 | . . . 1 Utility 6 | . . . 6 Weapon 2 | . . 1 1 Tool/Special . | . . . . Average Slot Usage (%) 82 | . 89 85 73 Engine 10 | . 14 12 2 Leg 3 | . . 4 2 Wheel 12 | . 28 11 10 Device 1 | . . . 5 Storage 12 | . 14 14 9 Processor 3 | . . . 12 Protection 11 | . 4 13 9 Energy Gun 6 | . . 6 6 Ballistic Gun 15 | . 28 20 2 Ballistic Cannon 2 | . . . 8 Peak Build Rating 21 | 6 9 11 21 Average Rating 10 | 3 7 8 16 On Entrance 5 | . 6 9 8 Avg Prop Armor Cover (%) . | . . . . Naked Turns . | . . . . Heaviest Build 30 | 12 22 22 30 Greatest Support 58 | 26 26 36 58 Greatest Overweight (x) 8 | . . 6 8 Average Overweight (x) . | . . . . Largest Inventory Capacity 10 | 8 10 10 10 Average Capacity 9 | 7 8 10 10 Most Carried 10 | 5 6 9 10 Average Carried 5 | 2 3 5 5 Final Capacity 10 | 8 10 10 10 Final Carried 7 | 2 6 6 7 Class Distribution -------------------- 95% | Mutant 4% | Scavenger-Mutant Dominant Class ---------------- Mutant | -10/Materials Mutant | -10/Subcaves Mutant | -8/Materials Resources | -11 -10 -10 -8 ----------- Run | Yrd Mat Sub Mat Matter Collected 1093 | 250 40 341 462 Remotely . | . . . . Salvage Created 1142 | . 52 298 792 Parts 62 | . 4 14 44 Haulers Intercepted 1 | . . . 1 Recyclers Shooed 3 | . . . 3 Parts Field Recycled . | . . . . Retrieved Matter . | . . . . Parts Self-Destructed 7 | . . 7 . Prevented . | . . . . Parts Restored . | . . . . Kills | -11 -10 -10 -8 ------- Run | Yrd Mat Sub Mat Combat Hostiles Destroyed 22 | . 1 8 13 Guns 14 | . 1 8 5 Cannons 6 | . . . 6 AOE 1 | . . . 1 Classes Destroyed 12 | . 2 2 8 Worker 1 | . . . 1 Builder 2 | . . . 2 Hauler 1 | . . . 1 Recycler 2 | . . . 2 Operator 1 | . . . 1 Watcher 1 | . 1 . . Swarmer 2 | . . 2 . Grunt 8 | . 1 . 7 Brawler 1 | . . . 1 Sentry 3 | . . . 3 Hunter 2 | . . . 2 Subdweller 6 | . . 6 . Best Kill Streak 5 | . 1 2 5 Combat Bots Only 2 | . 1 2 2 Max Kills in Single Turn 2 | . 1 1 2 Gunslinging . | . . . . Exploded 1 | . . . 1 Melee . | . . . . Uniques/NPCs Destroyed . | . . . . Combat | -11 -10 -10 -8 -------- Run | Yrd Mat Sub Mat Hostile Shots Fired 177 | . 6 44 127 Missed 58 | . 3 16 39 Hits 119 | . 3 28 88 Projectile 119 | . 3 28 88 AOE 5 | . . 5 . Critical Strikes 5 | . . . 5 Damage Taken 2511 | . 44 703 1764 Core 557 | . . 178 379 Absorbed by Shields . | . . . . Redirected to Shielding 130 | . . 89 41 Core Remaining (%) 64 | 100 . 28 . Volleys Fired 111 | . 4 50 57 Largest 2 | . 2 2 2 Hottest 95 | . 46 66 95 Shots Fired 213 | . 8 100 105 Gun 141 | . 8 93 40 Cannon 72 | . . 7 65 Launcher . | . . . . Special . | . . . . Kinetic 176 | . 8 93 75 Thermal 10 | . . 7 3 Explosive . | . . . . Electromagnetic 27 | . . . 27 Robot Hit Streak 10 | . 3 10 10 Robot Miss Streak 4 | . 2 4 4 Penetration Max 1 | . . . 1 Secondary Targets . | . . . . Shots Hit Robots 115 | . 4 38 73 Core Hits 50 | . 2 13 35 Critical Kills 2 | . . . 2 Critical Parts Destroyed . | . . . . Critical Strikes 5 | . . . 5 Meltdown 1 | . . . 1 Destroy 1 | . . . 1 Blast 3 | . . . 3 Melee Attacks . | . . . . Impact . | . . . . Slashing . | . . . . Piercing . | . . . . Sneak Attacks . | . . . . Combat Hostiles . | . . . . Follow-up Attacks . | . . . . Damage Inflicted 2325 | . 71 575 1679 Guns 1258 | . 71 557 630 Cannons 888 | . . . 888 Explosions 156 | . . . 156 Melee . | . . . . Ramming 23 | . . 18 5 Kinetic 1622 | . 71 537 1014 Thermal 144 | . . 20 124 Explosive 100 | . . . 100 Electromagnetic 436 | . . . 436 Impact . | . . . . Slashing . | . . . . Piercing . | . . . . Highest Corruption . | . . . . Average Corruption . | . . . . Corruption Purged . | . . . . Corruption Blocked . | . . . . Overload Shots . | . . . . Overflow Damage 109 | . . . 109 Projectiles 26 | . . . 26 Explosions 83 | . . . 83 Melee . | . . . . Knockbacks 9 | . . . 9 Impact . | . . . . Kinetic 9 | . . . 9 Secondary . | . . . . Self-Inflicted Damage 375 | . . 9 366 Shots 5 | . . . 5 Rammed 2 | . . 1 1 Targets Rammed 2 | . . 1 1 Kicked . | . . . . Crushed . | . . . . Highest Temperature 167 | . 1 . 167 Average Temperature 38 | . 1 . 38 Received Heat Transfer 642 | . 18 93 531 Siege Activations . | . . . . Martial Activations . | . . . . Shielding Activations . | . . . . Robots Disrupted . | . . . . Combat Hostiles . | . . . . Robots Corrupted . | . . . . Combat Hostiles . | . . . . Parts Fried . | . . . . Impact Corruptions . | . . . . Robots Melted 1 | . . . 1 Combat Hostiles 1 | . . . 1 Parts Melted 1 | . . . 1 Heat Transferred 211 | . . 50 161 Parts Sabotaged . | . . . . Parts Stolen . | . . . . Parts Stripped . | . . . . Power Chain Reactions 1 | . . . 1 Alert | -11 -10 -10 -8 ------- Run | Yrd Mat Sub Mat Maximum Alert Level 1 | . . . 1 Low Security (%) 95 | 100 100 . 94 Level 1 4 | . . . 5 Level 2 . | . . . . Level 3 . | . . . . Level 4 . | . . . . Level 5 . | . . . . High Security . | . . . . Max Security . | . . . . Peak Influence 296 | . 30 . 296 Initial . | . . . . Average 54 | . 8 . 65 Influence Increases 719 | . 37 50 632 Destroy 0b10 Robot/C 320 | . 20 40 260 Destroy 0b10 Robot/NC 40 | . 5 . 35 Destroy Leader 94 | . 12 10 72 Disable Machine 150 | . . . 150 Destroy Structure 70 | . . . 70 Lose Combat Pursuer 45 | . . . 45 Influence Decreases 463 | . 37 50 376 Time Decay 323 | . 37 40 246 Lost Part 140 | . . 10 130 Squads Dispatched 4 | . 1 . 3 Investigation 1 | . . . 1 Extermination . | . . . . Reinforcement 3 | . 1 . 2 Assault . | . . . . Garrison . | . . . . Intercept . | . . . . Searches Triggered . | . . . . Construction Impeded . | . . . . Haulers Reinforced . | . . . . Active Scanning Responses . | . . . . Cargo Convoy Interrupts . | . . . . Stealth | -11 -10 -10 -8 --------- Run | Yrd Mat Sub Mat Distress Signals 2 | . . . 2 Communications Jammed . | . . . . Distress Signals . | . . . . Times Spotted 39 | . 7 10 22 Peak Tracking Total 8 | . 6 2 8 Tactical Retreats 2 | . . . 2 Traps | -11 -10 -10 -8 ------- Run | Yrd Mat Sub Mat Traps Triggered 1 | . . . 1 Indirectly . | . . . . Trap Hack Attempts . | . . . . Triggered . | . . . . Disarmed . | . . . . Reprogrammed . | . . . . Reused . | . . . . Traps Extracted . | . . . . Installed . | . . . . Triggered . | . . . . Machines | -11 -10 -10 -8 ---------- Run | Yrd Mat Sub Mat Machines Disabled 10 | . . . 10 Max in Single Turn 3 | . . . 3 Machines Repaired . | . . . . Machines Dismantled . | . . . . Machines Sabotaged . | . . . . Overloaded Fab Kills . | . . . . Hacking | -11 -10 -10 -8 --------- Run | Yrd Mat Sub Mat Machines Accessed 1 | . . . 1 Terminals . | . . . . Fabricators . | . . . . Repair Stations . | . . . . Recycling Units 1 | . . . 1 Scanalyzers . | . . . . Garrison Access . | . . . . Total Hacks 4 | . . . 4 Successful 3 | . . . 3 Failed 1 | . . . 1 Catastrophic . | . . . . Database Lockouts . | . . . . Manual . | . . . . Terminals . | . . . . Fabricators . | . . . . Repair Stations . | . . . . Recycling Units 4 | . . . 4 Scanalyzers . | . . . . Garrison Access . | . . . . Terminal Hacks . | . . . . Fabricator Hacks . | . . . . Repair Station Hacks . | . . . . Recycling Unit Hacks 3 | . . . 3 Report Inventory 2 | . . . 2 Retrieve Components 1 | . . . 1 Scanalyzer . | . . . . Garrison Access Hacks . | . . . . Unauthorized Hacks . | . . . . Terminals . | . . . . Fabricators . | . . . . Repair Stations . | . . . . Recycling Units . | . . . . Scanalyzers . | . . . . Garrison Access . | . . . . Data Cores Recovered . | . . . . Used . | . . . . Hacking Detections . | . . . . Full Trace Events . | . . . . Feedback Events . | . . . . Feedback Blocked . | . . . . Robot Schematics Acquired . | . . . . Robots Built . | . . . . Authchips . | . . . . Time . | . . . . Total Robot Build Rating . | . . . . Part Schematics Acquired . | . . . . Parts Built . | . . . . Authchips . | . . . . Time . | . . . . Total Part Build Rating . | . . . . Part Studies Acquired . | . . . . Parts Repaired . | . . . . Time . | . . . . Parts Recycled . | . . . . Recycled Matter . | . . . . Retrieved Matter . | . . . . Retrieved Components 9 | . . . 9 Parts Scanalyzed . | . . . . Part Schematics Acquired . | . . . . Parts Damaged . | . . . . Bothacking | -11 -10 -10 -8 ------------ Run | Yrd Mat Sub Mat Used RIF Installer . | . . . . Robots Hacked . | . . . . Non-combat . | . . . . Combat . | . . . . Robot Hacks Applied . | . . . . Relay Couplers Released . | . . . . Fabnet Peak Effective % . | . . . . Robots Rewired . | . . . . Allies Hacked . | . . . . Hacks Repelled . | . . . . Allies | -11 -10 -10 -8 -------- Run | Yrd Mat Sub Mat Total Allies . | . . . . Largest Group . | . . . . Highest-Rated Group . | . . . . Highest-Rated Ally . | . . . . Total Orders . | . . . . Ally Attacks . | . . . . Total Damage . | . . . . Kills . | . . . . Allies Corrupted . | . . . . Allies Melted . | . . . . Intel | -11 -10 -10 -8 ------- Run | Yrd Mat Sub Mat Active Infowar (turns) 338 | . . . 338 Machine Analysis 336 | . . . 336 ECM 6 | . . . 6 Robot Analysis Total . | . . . . Derelict Logs Recovered 2 | . . 2 . Drone Launches . | . . . . Drone Recoveries . | . . . . Exploration | -11 -10 -10 -8 ------------- Run | Yrd Mat Sub Mat Turns Passed 3080 | 45 146 2030 859 Spaces Moved 2068 | 36 129 1426 477 Core 25 | 4 . 19 2 Treads 59 | . . . 59 Legs 407 | . . 338 69 Wheels 1577 | 32 129 1069 347 Hover . | . . . . Flight . | . . . . Fastest Speed 50 | 50 90 90 93 Average Speed 126 | 87 90 129 129 Slowest Speed 450 | 100 90 350 450 Overloaded Moves . | . . . . Propulsion Burnouts . | . . . . Robots Hopped . | . . . . Potential Cave-ins . | . . . . Cave-ins Triggered . | . . . . Exploration Rate (%) 37 | 4 40 64 40 Regions Visited 3 Branch Regions 1 Pre-discovered Areas . | . . . . Known Exits Taken . | . . . . Unknown Exits Taken 3 | 1 1 1 . Scrap Searched . | . . . . Spaces Dug . | . . . . Terrain Destroyed 67 | . . . 67 Melee . | . . . . Projectile 4 | . . . 4 AOE 63 | . . . 63 Terrain Rammed . | . . . . Walls Destroyed . | . . . . Machines Disabled . | . . . . Actions | -11 -10 -10 -8 --------- Run | Yrd Mat Sub Mat Total 2321 | 49 150 1509 613 Wait 25 | . . 5 20 Move 2065 | 35 128 1425 477 Hop . | . . . . Pick Up 51 | 8 9 9 25 Fast Attach . | . . . . Attach 27 | 6 1 6 14 Detach . | . . . . Swap 19 | . 4 8 7 Drop 21 | . 4 5 12 Fire 111 | . 4 50 57 Melee . | . . . . Ram 2 | . . 1 1 Kick . | . . . . Crush . | . . . . Escape Stasis . | . . . . Rewire . | . . . . Trap . | . . . . Miscellaneous . | . . . . Route ------- -11/Scrapyard -10/Materials (discovered 2 exits: [*Min] / [*Sub]) -10/Subcaves -8/Materials History --------- Turn | Location | Event 12 | -11/Scrapyard | Discovered new exit (range 16) 46 | -11/Scrapyard | Entered Materials 47 | -10/Materials | Met a group of wandering Federalists 100 | -10/Materials | Discovered new exit (range 15) 177 | -10/Materials | Discovered new exit (range 12) 192 | -10/Materials | Entered Subcaves 192 | -10/Subcaves | Accompanied by 3 allies 193 | -10/Subcaves | Continued accompanying wandering Federalists (4) 257 | -10/Subcaves | Learned 2 Materials zone layouts 300 | -10/Subcaves | Lost 4 allies 306 | -10/Subcaves | Build established: Mutant 382 | -10/Subcaves | Learned Materials stockpile data 706 | -10/Subcaves | Shifting Twisted Machinery released Piercing Trap 713 | -10/Subcaves | Shifting Twisted Machinery released Sub. Laser 815 | -10/Subcaves | A swath of the cavern ceiling suddenly collapsed 1146 | -10/Subcaves | Shifting Twisted Machinery released Mak. Axe 1150 | -10/Subcaves | Shifting Twisted Machinery released Sub. Optics 1209 | -10/Subcaves | Core integrity fell below 50% 2138 | -10/Subcaves | Shifting Twisted Machinery released Scrap Shield 2205 | -10/Subcaves | Discovered new exit (range 10) 2222 | -10/Subcaves | Entered Materials 2222 | -8/Materials | Evolved 4 slots: Propulsion x2, Utility x2 2479 | -8/Materials | Lost 3 parts (1p1n1w) 2756 | -8/Materials | Lost 3 parts (1n1u1w) 3072 | -8/Materials | Core integrity fell below 50% 3081 | -8/Materials | Self-destructed Last Messages --------------- R-06 Scavenger collects Hvy. Assault Rifle. U-05 Engineer destroyed. K-01 Serf collects debris. Hrd. Medium Armor Plating destroyed. Com. Wheel destroyed. K-01 Serf collects debris. R-06 Scavenger collects Lgt. Treads. Penetrated by Slug. K-01 Serf collects debris. U-05 Engineer lays Concrete. K-01 Serf collects debris. U-05 Engineer lays Concrete. K-01 Serf collects debris. Gauss Rifle destroyed. Machine Analyzer destroyed. U-05 Engineer lays Concrete. K-01 Serf collects debris. U-05 Engineer builds a Door. Critical hit (Burn: +37). U-05 Engineer builds a Wall. Map ----- +----------------------------------------------------+ | ??? #?# """ # " # # #??????# | | ??? #?# """ # = " # ########??????# """ | | ???????????"""??# % " #% #?????????????#=% """ | | ????????????????# ! = # #?????????????# % " " | | ?????##########+######+### ##########+#### | | ???? =% % """ #% "" | | ???? ! !"Y" %+ """ | | ????""" =]= #% """ | | ????""" ###################### [#% / | | ????"""? ???????????????????????# === ####### | | ????"""?????????????????????????# == # | | ????"""??????"""??????????####### = !! / "" | | ?????????????"""??# ???? ! # "" | | ?????????????"""??# ?? # "" | | ????"""??????"""??# ?? # | | ????"""? ???"""??# ??################ # | | ????""" ?? ???# ?????????????????# # | | ????""" ###+#### #######??????????# # | | ????""" gg| Y ??????????# # [ | | ????? g!% ???????????# ####### | | ???? ???????????# #?????? | | ????* ?#;;;;;;;;;#???????????# #?????? | | ???? ##; ##??????????# #?????? | | ??? # ;#??"""?????# #?????? | | ??? ## ;#??"""?????# #?????? | | ?? ==!*# @ #??"""?????# #?????? | | ?? ]! %%% + #??????????# #?????? | | ?? ] !ku #???????=??# #?????? | | ??????#########% ;#??????????# #?????? | | ??????????????# w k ; #?????????# #?????? | | ??????"""?????# ;k ###?????????# #?????? | | !?????"""?????# ;;;;;;;;;#???????????# #?????? | | ??????"""?????# =### # ###???????????# ####### | | ??????"""???? + *%#?#####???????????#### | | ??????"""???? # !#?????????????????# | | ??????????"T" # %#?????????????????# | | ??????????"""?# ##????????????????# | | ??????????###?# T#????????????????# | | ??????????????# ############??????# | | ??????????????# / #??????# | | ??????????????# ## ######## | | ??????????????# ## [!#= | | ??????????????## ### * += [ * | | ???????????????# #?# !#*=![ % | | ???????????????# #?# """ """ #%########### | | ??????????????? #?# """ """ # #?????????? | | ??????????????? #?# """ """ # #??????????+#### | | ??????????????? ??########### #??????????????? | | ?????!???????? ????????????# #????????????????? | | ?????????????? ????????????# #?????????????????? | +----------------------------------------------------+ Best States ------------- Heat Dissipation 45 Energy Generation 14 Energy Capacity 250 Matter Stores 300 Matter Capacity 300 Sight Range 16 Terrain Scan Density 10 ECM Strength 1 Armor Coverage 225 Weapon Shielding 33 Evasion (%) 42 Targeting Accuracy 10 Recoil Reduction 1 Item Schematics ----------------- None Robot Schematics ------------------ None Fabricated ------------ Nothing Repaired ---------- Nothing Studied --------- None Alien Tech Used ----------------- None Achievements -------------- I Have A Map? Challenges ------------ None Game ------ Seed FlyingIonBroadsword Manual? 0 Play Time 00:22:21 Cumulative 10.6 hours Start 2026.08.06 @ 11:35:26 End 2026.08.06 @ 11:56:16 Sessions 1 Manual Loads 0 Difficulty Rogue Special Mode None Game No. 35 Rogue 35 Adventurer 0 Explorer 0 Win Type - Total 0 Types 0/0/0/0/0/0/0/0/0/0 Lore% 12 Gallery% 18 Achievement% 14 Wizard Run 0 Options --------- Layout 1 ASCII 0 Keyboard 0 Movement Mouse Keybinds 0 Fullscreen 1 Font 24/Smallcaps Map View 50x35 Zoom Use 0% Tactical HUD 0 Map Filters NONE Filters NONE Steam 1 RUN: 63bc99b8-c210-4779-b1f7-475c2eb5b47a